[Event "Titled Tuesday Blitz July 20 2021"]
[White "Stearman, Josiah"]
[Black "Shvedova, Alexandra"]
[WhiteFideId "2062496"]
[BlackFideId "54154782"]
[WhiteElo "2402"]
[BlackElo "1887"]
[Result "1/2-1/2"]
[Round "01"]
[TimeControl "180+1"]
[Date "2021.07.21"]
[WhiteClock "0:01:34"]
[BlackClock "0:01:00"]

1. e4 {[%clk 0:03:00]}  e5 {[%clk 0:02:59]} 2. Nf3 {[%clk 0:02:58]}  Nc6 {[%clk 0:03:00]} 3. Bc4 {[%clk 0:02:59]}  Bc5 {[%clk 0:03:00]} 4. O-O {[%clk 0:02:59]}  Nf6 {[%clk 0:03:00]} 5. d4 {[%clk 0:03:00]}  Bxd4 {[%clk 0:03:00]} 6. Nxd4 {[%clk 0:03:00]}  Nxd4 {[%clk 0:03:00]} 7. f4 {[%clk 0:03:00]}  d6 {[%clk 0:03:00]} 8. fxe5 {[%clk 0:03:01]}  dxe5 {[%clk 0:03:01]} 9. Bg5 {[%clk 0:03:02]}  Be6 {[%clk 0:02:52]} 10. Na3 {[%clk 0:03:00]}  Qe7 {[%clk 0:02:42]} 11. c3 {[%clk 0:02:58]}  Bxc4 {[%clk 0:02:36]} 12. Bxf6 {[%clk 0:02:57]}  gxf6 {[%clk 0:02:32]} 13. Nxc4 {[%clk 0:02:56]}  Ne6 {[%clk 0:02:30]} 14. b4 {[%clk 0:02:55]}  Rg8 {[%clk 0:02:18]} 15. Ne3 {[%clk 0:02:54]}  Nf4 {[%clk 0:02:14]} 16. g3 {[%clk 0:02:53]}  Qe6 {[%clk 0:02:05]} 17. Nf5 {[%clk 0:02:37]}  Qc4 {[%clk 0:01:49]} 18. Kh1 {[%clk 0:02:28]}  Qxe4+ {[%clk 0:01:49]} 19. Qf3 {[%clk 0:02:21]}  Qxf5 {[%clk 0:01:46]} 20. Qxb7 {[%clk 0:02:15]}  Rd8 {[%clk 0:01:38]} 21. gxf4 {[%clk 0:02:03]}  Rd2 {[%clk 0:01:15]} 22. Qc6+ {[%clk 0:02:00]}  Qd7 {[%clk 0:01:01]} 23. Qa8+ {[%clk 0:01:39]}  Qd8 {[%clk 0:01:00]} 24. Qc6+ {[%clk 0:01:36]}  Qd7 {[%clk 0:00:59]} 25. Qa8+ {[%clk 0:01:35]}  Qd8 {[%clk 0:00:59]} 26. Qc6+ {[%clk 0:01:34]}  Qd7 {[%clk 0:01:00]} 1/2-1/2


[Site "https://www.chess.com"]

[Event "Titled Tuesday Blitz July 20 2021"]
[White "Timofeev, Artyom"]
[Black "Vyacheslav_N"]
[WhiteFideId "4140419"]
[WhiteElo "2582"]
[BlackElo "2424"]
[Result "1-0"]
[Round "01"]
[TimeControl "180+1"]
[Date "2021.07.20"]
[WhiteClock "0:02:00"]
[BlackClock "0:00:05"]

1. c4 {[%clk 0:03:00]}  f5 {[%clk 0:02:50]} 2. Nc3 {[%clk 0:02:59]}  e5 {[%clk 0:02:42]} 3. d4 {[%clk 0:02:57]}  d6 {[%clk 0:02:40]} 4. Nf3 {[%clk 0:02:53]}  Nc6 {[%clk 0:02:33]} 5. dxe5 {[%clk 0:02:51]}  Nxe5 {[%clk 0:02:17]} 6. Bf4 {[%clk 0:02:45]}  Nxc4 {[%clk 0:01:57]} 7. Qa4+ {[%clk 0:02:42]}  c6 {[%clk 0:01:46]} 8. Qxc4 {[%clk 0:02:42]}  d5 {[%clk 0:01:47]} 9. Qd3 {[%clk 0:02:39]}  Nf6 {[%clk 0:01:48]} 10. e3 {[%clk 0:02:38]}  Be7 {[%clk 0:01:12]} 11. Be2 {[%clk 0:02:37]}  O-O {[%clk 0:00:44]} 12. O-O {[%clk 0:02:36]}  Ne4 {[%clk 0:00:41]} 13. Be5 {[%clk 0:02:20]}  Be6 {[%clk 0:00:36]} 14. Qc2 {[%clk 0:02:19]}  Qe8 {[%clk 0:00:20]} 15. Nd4 {[%clk 0:02:15]}  Bd7 {[%clk 0:00:20]} 16. f4 {[%clk 0:02:10]}  Rc8 {[%clk 0:00:05]} 17. Rad1 {[%clk 0:02:00]} 1-0


[Site "https://www.chess.com"]

[Event "Titled Tuesday Blitz July 20 2021"]
[White "Tin, Jingyao"]
[Black "Zong, Davis"]
[WhiteFideId "5804418"]
[BlackFideId "30903955"]
[WhiteElo "2374"]
[BlackElo "2378"]
[Result "1-0"]
[Round "01"]
[TimeControl "180+1"]
[Date "2021.07.21"]
[WhiteClock "0:00:28"]
[BlackClock "0:00:02"]

1. d4 {[%clk 0:03:00]}  Nf6 {[%clk 0:02:54]} 2. c4 {[%clk 0:03:00]}  g6 {[%clk 0:02:53]} 3. Nc3 {[%clk 0:02:59]}  d5 {[%clk 0:02:53]} 4. Nf3 {[%clk 0:02:59]}  Bg7 {[%clk 0:02:52]} 5. Qb3 {[%clk 0:03:00]}  dxc4 {[%clk 0:02:48]} 6. Qxc4 {[%clk 0:03:01]}  O-O {[%clk 0:02:48]} 7. e4 {[%clk 0:03:01]}  c6 {[%clk 0:02:48]} 8. Be2 {[%clk 0:03:00]}  Be6 {[%clk 0:02:38]} 9. Qd3 {[%clk 0:02:54]}  Na6 {[%clk 0:02:35]} 10. a3 {[%clk 0:02:44]}  Nc7 {[%clk 0:02:13]} 11. O-O {[%clk 0:02:43]}  Qd7 {[%clk 0:02:09]} 12. Bf4 {[%clk 0:02:25]}  Rfd8 {[%clk 0:02:05]} 13. Rad1 {[%clk 0:02:23]}  Nh5 {[%clk 0:02:02]} 14. Be3 {[%clk 0:02:20]}  b5 {[%clk 0:01:55]} 15. Qc2 {[%clk 0:02:15]}  a5 {[%clk 0:01:52]} 16. Ne5 {[%clk 0:01:53]}  Bxe5 {[%clk 0:01:30]} 17. dxe5 {[%clk 0:01:54]}  Qe8 {[%clk 0:01:28]} 18. Bxh5 {[%clk 0:01:46]}  gxh5 {[%clk 0:01:29]} 19. f4 {[%clk 0:01:46]}  b4 {[%clk 0:01:16]} 20. Na4 {[%clk 0:01:42]}  bxa3 {[%clk 0:01:09]} 21. bxa3 {[%clk 0:01:43]}  Nb5 {[%clk 0:01:10]} 22. f5 {[%clk 0:01:37]}  Bc8 {[%clk 0:00:47]} 23. Bb6 {[%clk 0:00:57]}  Rxd1 {[%clk 0:00:36]} 24. Rxd1 {[%clk 0:00:58]}  Ba6 {[%clk 0:00:36]} 25. Nc5 {[%clk 0:00:55]}  Nxa3 {[%clk 0:00:21]} 26. Qb3 {[%clk 0:00:54]}  Be2 {[%clk 0:00:13]} 27. Re1 {[%clk 0:00:51]}  Nc4 {[%clk 0:00:05]} 28. Rxe2 {[%clk 0:00:50]}  Nxe5 {[%clk 0:00:04]} 29. Qg3+ {[%clk 0:00:49]}  Ng6 {[%clk 0:00:03]} 30. fxg6 {[%clk 0:00:49]}  hxg6 {[%clk 0:00:04]} 31. h3 {[%clk 0:00:36]}  a4 {[%clk 0:00:03]} 32. Ra2 {[%clk 0:00:34]}  a3 {[%clk 0:00:03]} 33. Rxa3 {[%clk 0:00:33]}  Rb8 {[%clk 0:00:04]} 34. Bc7 {[%clk 0:00:30]}  Rb1+ {[%clk 0:00:04]} 35. Kh2 {[%clk 0:00:30]}  Qc8 {[%clk 0:00:04]} 36. Rd3 {[%clk 0:00:29]}  Kg7 {[%clk 0:00:03]} 37. Qe5+ {[%clk 0:00:28]}  Kh7 {[%clk 0:00:02]} 38. Rd8 {[%clk 0:00:28]} 1-0


[Site "https://www.chess.com"]

[Event "Titled Tuesday Blitz July 20 2021"]
[White "Torkkola, Henri"]
[Black "Tsaruk, Maksim"]
[WhiteFideId "507660"]
[BlackFideId "13511173"]
[WhiteElo "2137"]
[BlackElo "2184"]
[Result "0-1"]
[Round "01"]
[TimeControl "180+1"]
[Date "2021.07.21"]
[WhiteClock "0:00:02"]
[BlackClock "0:00:20"]

1. d4 {[%clk 0:03:00]}  Nf6 {[%clk 0:02:54]} 2. Bf4 {[%clk 0:03:00]}  d5 {[%clk 0:02:47]} 3. e3 {[%clk 0:03:00]}  c5 {[%clk 0:02:47]} 4. Nf3 {[%clk 0:03:00]}  e6 {[%clk 0:02:47]} 5. Nbd2 {[%clk 0:03:00]}  Nc6 {[%clk 0:02:47]} 6. c3 {[%clk 0:03:00]}  Bd6 {[%clk 0:02:47]} 7. Bg3 {[%clk 0:03:00]}  O-O {[%clk 0:02:47]} 8. Bd3 {[%clk 0:03:00]}  b6 {[%clk 0:02:45]} 9. e4 {[%clk 0:03:01]}  Be7 {[%clk 0:02:45]} 10. e5 {[%clk 0:03:00]}  Nh5 {[%clk 0:02:44]} 11. Ng5 {[%clk 0:03:01]}  Bxg5 {[%clk 0:02:44]} 12. Qxh5 {[%clk 0:03:00]}  g6 {[%clk 0:02:44]} 13. Qe2 {[%clk 0:03:01]}  cxd4 {[%clk 0:02:45]} 14. h4 {[%clk 0:02:59]}  Bh6 {[%clk 0:02:45]} 15. h5 {[%clk 0:02:59]}  dxc3 {[%clk 0:02:44]} 16. bxc3 {[%clk 0:02:59]}  Bg7 {[%clk 0:02:39]} 17. Nf3 {[%clk 0:02:55]}  Qe7 {[%clk 0:02:38]} 18. Bh4 {[%clk 0:02:46]}  Qc5 {[%clk 0:02:35]} 19. Rc1 {[%clk 0:02:28]}  d4 {[%clk 0:02:31]} 20. Bf6 {[%clk 0:02:22]}  dxc3 {[%clk 0:02:23]} 21. Qe4 {[%clk 0:01:40]}  Bxf6 {[%clk 0:01:43]} 22. exf6 {[%clk 0:01:37]}  Nb4 {[%clk 0:01:29]} 23. hxg6 {[%clk 0:00:47]}  fxg6 {[%clk 0:01:28]} 24. Bc4 {[%clk 0:00:31]}  Rxf6 {[%clk 0:00:38]} 25. Rxc3 {[%clk 0:00:18]}  Nd5 {[%clk 0:00:31]} 26. Rc2 {[%clk 0:00:12]}  Qb4+ {[%clk 0:00:31]} 27. Kf1 {[%clk 0:00:09]}  Ba6 {[%clk 0:00:31]} 28. Ne5 {[%clk 0:00:07]}  Qb1+ {[%clk 0:00:23]} 29. Ke2 {[%clk 0:00:07]}  Nc3+ {[%clk 0:00:23]} 30. Kd3 {[%clk 0:00:04]}  Qxc2+ {[%clk 0:00:21]} 31. Kxc2 {[%clk 0:00:04]}  Nxe4 {[%clk 0:00:22]} 32. Bxa6 {[%clk 0:00:05]}  Rxf2+ {[%clk 0:00:22]} 33. Kd3 {[%clk 0:00:05]}  Nc5+ {[%clk 0:00:22]} 34. Ke3 {[%clk 0:00:05]}  Rf5 {[%clk 0:00:19]} 35. Nc6 {[%clk 0:00:01]}  Nxa6 {[%clk 0:00:19]} 36. Ne7+ {[%clk 0:00:01]}  Kg7 {[%clk 0:00:19]} 37. Nxf5+ {[%clk 0:00:02]}  exf5 {[%clk 0:00:20]} 38. Rc1 {[%clk 0:00:02]}  Re8+ {[%clk 0:00:20]} 0-1


[Site "https://www.chess.com"]

[Event "Titled Tuesday Blitz July 20 2021"]
[White "Tristan, Leonardo"]
[Black "Shtyka, Sergey"]
[WhiteFideId "113816"]
[BlackFideId "4138465"]
[WhiteElo "2404"]
[BlackElo "2064"]
[Result "1-0"]
[Round "01"]
[TimeControl "180+1"]
[Date "2021.07.21"]
[WhiteClock "0:01:45"]
[BlackClock "0:01:40"]

1. d4 {[%clk 0:03:00]}  c5 {[%clk 0:02:59]} 2. c3 {[%clk 0:03:00]}  b6 {[%clk 0:02:56]} 3. e4 {[%clk 0:02:59]}  Bb7 {[%clk 0:02:55]} 4. Bd3 {[%clk 0:02:59]}  Nf6 {[%clk 0:02:48]} 5. Qe2 {[%clk 0:02:56]}  d6 {[%clk 0:02:46]} 6. Nf3 {[%clk 0:02:55]}  Nbd7 {[%clk 0:02:42]} 7. O-O {[%clk 0:02:54]}  e5 {[%clk 0:02:41]} 8. dxe5 {[%clk 0:02:49]}  Nxe5 {[%clk 0:02:39]} 9. Nxe5 {[%clk 0:02:47]}  dxe5 {[%clk 0:02:39]} 10. Bb5+ {[%clk 0:02:47]}  Nd7 {[%clk 0:02:22]} 11. Rd1 {[%clk 0:02:47]}  Bc8 {[%clk 0:02:23]} 12. Na3 {[%clk 0:02:38]}  a6 {[%clk 0:02:22]} 13. Bc6 {[%clk 0:02:38]}  Ra7 {[%clk 0:02:22]} 14. Nc4 {[%clk 0:02:36]}  f6 {[%clk 0:02:07]} 15. Nxe5 {[%clk 0:02:11]}  fxe5 {[%clk 0:01:53]} 16. Qh5+ {[%clk 0:02:11]}  g6 {[%clk 0:01:41]} 17. Qxe5+ {[%clk 0:02:10]}  Qe7 {[%clk 0:01:40]} 18. Qb8 {[%clk 0:01:45]} 1-0


[Site "https://www.chess.com"]

[Event "Titled Tuesday Blitz July 20 2021"]
[White "Tymrakiewicz, Rafal"]
[Black "Tarigan, Gilbert Elroy"]
[WhiteFideId "1108832"]
[BlackFideId "7108133"]
[WhiteElo "2172"]
[BlackElo "1908"]
[Result "0-1"]
[Round "01"]
[TimeControl "180+1"]
[Date "2021.07.21"]
[WhiteClock "0:00:02"]
[BlackClock "0:00:09"]

1. d4 {[%clk 0:02:56]}  e6 {[%clk 0:02:56]} 2. Nf3 {[%clk 0:02:53]}  Nf6 {[%clk 0:02:56]} 3. Bg5 {[%clk 0:02:52]}  Be7 {[%clk 0:02:55]} 4. Nbd2 {[%clk 0:02:51]}  O-O {[%clk 0:02:55]} 5. e3 {[%clk 0:02:50]}  b6 {[%clk 0:02:54]} 6. Bd3 {[%clk 0:02:48]}  Bb7 {[%clk 0:02:55]} 7. Qe2 {[%clk 0:02:49]}  d6 {[%clk 0:02:53]} 8. e4 {[%clk 0:02:46]}  Nbd7 {[%clk 0:02:49]} 9. Rd1 {[%clk 0:02:40]}  Nh5 {[%clk 0:02:43]} 10. h4 {[%clk 0:01:50]}  h6 {[%clk 0:02:36]} 11. Be3 {[%clk 0:01:38]}  Nhf6 {[%clk 0:02:24]} 12. g4 {[%clk 0:01:15]}  Nxg4 {[%clk 0:02:06]} 13. Rg1 {[%clk 0:01:14]}  h5 {[%clk 0:01:50]} 14. Ng5 {[%clk 0:01:09]}  c5 {[%clk 0:01:35]} 15. c3 {[%clk 0:01:03]}  cxd4 {[%clk 0:01:32]} 16. cxd4 {[%clk 0:01:03]}  e5 {[%clk 0:01:13]} 17. Rxg4 {[%clk 0:00:58]}  hxg4 {[%clk 0:01:12]} 18. Qxg4 {[%clk 0:00:59]}  exd4 {[%clk 0:01:01]} 19. Bxd4 {[%clk 0:00:58]}  Ne5 {[%clk 0:01:01]} 20. Bxe5 {[%clk 0:00:48]}  dxe5 {[%clk 0:01:02]} 21. Ndf3 {[%clk 0:00:48]}  Bxg5 {[%clk 0:00:40]} 22. Nxg5 {[%clk 0:00:49]}  Qd6 {[%clk 0:00:24]} 23. Qf5 {[%clk 0:00:29]}  g6 {[%clk 0:00:17]} 24. Qg4 {[%clk 0:00:26]}  Rad8 {[%clk 0:00:14]} 25. Ke2 {[%clk 0:00:20]}  Ba6 {[%clk 0:00:12]} 26. Qg3 {[%clk 0:00:09]}  Bxd3+ {[%clk 0:00:08]} 27. Rxd3 {[%clk 0:00:10]}  Qxd3+ {[%clk 0:00:09]} 28. Qxd3 {[%clk 0:00:11]}  Rxd3 {[%clk 0:00:10]} 29. Kxd3 {[%clk 0:00:12]}  f6 {[%clk 0:00:09]} 30. Nf3 {[%clk 0:00:06]}  Kf7 {[%clk 0:00:09]} 31. Nd2 {[%clk 0:00:04]}  Rd8+ {[%clk 0:00:08]} 32. Ke3 {[%clk 0:00:04]}  Ke6 {[%clk 0:00:08]} 33. Nc4 {[%clk 0:00:04]}  Rh8 {[%clk 0:00:07]} 34. Na3 {[%clk 0:00:02]}  Rxh4 {[%clk 0:00:07]} 35. Nb5 {[%clk 0:00:02]}  Rh3+ {[%clk 0:00:08]} 36. f3 {[%clk 0:00:02]}  Rh7 {[%clk 0:00:09]} 0-1


[Site "https://www.chess.com"]

[Event "Titled Tuesday Blitz July 20 2021"]
[White "Vivas Zamora, Fabian Ernesto"]
[Black "Chigaev, Maksim"]
[WhiteFideId "3902480"]
[BlackFideId "4108116"]
[WhiteElo "1966"]
[BlackElo "2646"]
[Result "0-1"]
[Round "01"]
[TimeControl "180+1"]
[Date "2021.07.20"]
[WhiteClock "0:00:01"]
[BlackClock "0:01:30"]

1. c4 {[%clk 0:02:54]}  g6 {[%clk 0:02:57]} 2. g3 {[%clk 0:02:46]}  Bg7 {[%clk 0:02:55]} 3. Bg2 {[%clk 0:02:47]}  e5 {[%clk 0:02:54]} 4. Nc3 {[%clk 0:02:47]}  Nc6 {[%clk 0:02:53]} 5. e3 {[%clk 0:02:41]}  d6 {[%clk 0:02:53]} 6. Nge2 {[%clk 0:02:41]}  Nge7 {[%clk 0:02:50]} 7. O-O {[%clk 0:02:42]}  Bg4 {[%clk 0:02:46]} 8. h3 {[%clk 0:02:39]}  Be6 {[%clk 0:02:47]} 9. b3 {[%clk 0:02:29]}  Qd7 {[%clk 0:02:38]} 10. Kh2 {[%clk 0:02:29]}  O-O {[%clk 0:02:37]} 11. d4 {[%clk 0:02:23]}  exd4 {[%clk 0:02:37]} 12. exd4 {[%clk 0:02:16]}  d5 {[%clk 0:02:37]} 13. Be3 {[%clk 0:02:03]}  Rad8 {[%clk 0:02:34]} 14. Nf4 {[%clk 0:01:55]}  dxc4 {[%clk 0:02:27]} 15. Nxe6 {[%clk 0:01:35]}  Qxe6 {[%clk 0:02:15]} 16. d5 {[%clk 0:01:32]}  Qf5 {[%clk 0:02:05]} 17. Qe1 {[%clk 0:00:52]}  Ne5 {[%clk 0:01:56]} 18. Bd4 {[%clk 0:00:31]}  Nf3+ {[%clk 0:01:47]} 19. Bxf3 {[%clk 0:00:31]}  Bxd4 {[%clk 0:01:47]} 20. Qxe7 {[%clk 0:00:16]}  Qxf3 {[%clk 0:01:42]} 21. Ne4 {[%clk 0:00:08]}  Rfe8 {[%clk 0:01:42]} 22. Qxc7 {[%clk 0:00:04]}  Bxa1 {[%clk 0:01:39]} 23. Ng5 {[%clk 0:00:04]}  Qf5 {[%clk 0:01:36]} 24. h4 {[%clk 0:00:02]}  Be5 {[%clk 0:01:31]} 25. Qxb7 {[%clk 0:00:01]}  cxb3 {[%clk 0:01:32]} 26. axb3 {[%clk 0:00:01]}  h6 {[%clk 0:01:32]} 27. Nh3 {[%clk 0:00:01]}  Rxd5 {[%clk 0:01:30]} 0-1


[Site "https://www.chess.com"]

[Event "Titled Tuesday Blitz July 20 2021"]
[White "Yanchenko, Roman"]
[Black "DominikPedzich"]
[WhiteFideId "4137329"]
[WhiteElo "2762"]
[BlackElo "2408"]
[Result "1/2-1/2"]
[Round "01"]
[TimeControl "180+1"]
[Date "2021.07.21"]
[WhiteClock "0:00:24"]
[BlackClock "0:00:19"]

1. d4 {[%clk 0:03:00]}  d6 {[%clk 0:02:59]} 2. Nf3 {[%clk 0:02:58]}  Nf6 {[%clk 0:02:59]} 3. Bg5 {[%clk 0:02:58]}  g6 {[%clk 0:02:56]} 4. Bxf6 {[%clk 0:02:57]}  exf6 {[%clk 0:02:55]} 5. c4 {[%clk 0:02:58]}  f5 {[%clk 0:02:53]} 6. Nc3 {[%clk 0:02:58]}  Bg7 {[%clk 0:02:53]} 7. e3 {[%clk 0:02:59]}  O-O {[%clk 0:02:52]} 8. g3 {[%clk 0:02:59]}  c6 {[%clk 0:02:52]} 9. Bg2 {[%clk 0:02:59]}  Nd7 {[%clk 0:02:52]} 10. O-O {[%clk 0:03:00]}  Nf6 {[%clk 0:02:52]} 11. Qb3 {[%clk 0:02:59]}  Re8 {[%clk 0:02:51]} 12. Rfd1 {[%clk 0:02:59]}  h6 {[%clk 0:02:50]} 13. Rac1 {[%clk 0:02:59]}  Qe7 {[%clk 0:02:47]} 14. Ne1 {[%clk 0:02:58]}  Ne4 {[%clk 0:02:42]} 15. Nd3 {[%clk 0:02:56]}  Kh7 {[%clk 0:02:37]} 16. a3 {[%clk 0:02:39]}  Kh8 {[%clk 0:02:37]} 17. h4 {[%clk 0:02:37]}  Kh7 {[%clk 0:02:30]} 18. Qc2 {[%clk 0:02:34]}  Kh8 {[%clk 0:02:29]} 19. Nf4 {[%clk 0:02:32]}  Kh7 {[%clk 0:02:25]} 20. b4 {[%clk 0:02:25]}  a6 {[%clk 0:02:23]} 21. a4 {[%clk 0:02:23]}  Be6 {[%clk 0:02:14]} 22. Nxe4 {[%clk 0:02:20]}  fxe4 {[%clk 0:02:14]} 23. Qxe4 {[%clk 0:02:16]}  Bg4 {[%clk 0:02:06]} 24. Qxe7 {[%clk 0:02:16]}  Rxe7 {[%clk 0:02:06]} 25. Rd2 {[%clk 0:02:16]}  Bf5 {[%clk 0:01:59]} 26. b5 {[%clk 0:02:12]}  axb5 {[%clk 0:01:58]} 27. axb5 {[%clk 0:02:13]}  Rc8 {[%clk 0:01:47]} 28. Rcd1 {[%clk 0:01:57]}  Rec7 {[%clk 0:01:36]} 29. Ra2 {[%clk 0:01:43]}  Bg4 {[%clk 0:01:19]} 30. Rb1 {[%clk 0:01:39]}  Bf5 {[%clk 0:01:18]} 31. Rd1 {[%clk 0:01:28]}  Bg4 {[%clk 0:01:14]} 32. Re1 {[%clk 0:01:28]}  Re7 {[%clk 0:01:07]} 33. bxc6 {[%clk 0:01:25]}  bxc6 {[%clk 0:01:06]} 34. Ra6 {[%clk 0:01:24]}  Bxd4 {[%clk 0:01:03]} 35. Rxc6 {[%clk 0:01:20]}  Rxc6 {[%clk 0:01:03]} 36. Bxc6 {[%clk 0:01:21]}  Bc3 {[%clk 0:00:56]} 37. Rc1 {[%clk 0:01:19]}  Be5 {[%clk 0:00:54]} 38. Nd3 {[%clk 0:01:10]}  Bg7 {[%clk 0:00:52]} 39. Kg2 {[%clk 0:00:55]}  Ra7 {[%clk 0:00:48]} 40. Bd5 {[%clk 0:00:55]}  Bf5 {[%clk 0:00:41]} 41. Nf4 {[%clk 0:00:53]}  Be5 {[%clk 0:00:36]} 42. Rd1 {[%clk 0:00:51]}  Kg7 {[%clk 0:00:34]} 43. Kf3 {[%clk 0:00:33]}  Ra1 {[%clk 0:00:30]} 44. Rxa1 {[%clk 0:00:31]}  Bxa1 {[%clk 0:00:30]} 45. Be4 {[%clk 0:00:30]}  Be6 {[%clk 0:00:28]} 46. Bd5 {[%clk 0:00:23]}  Bf5 {[%clk 0:00:28]} 47. Ne2 {[%clk 0:00:24]}  Bd3 {[%clk 0:00:26]} 48. Nd4 {[%clk 0:00:22]}  Bf5 {[%clk 0:00:23]} 49. Nxf5+ {[%clk 0:00:16]}  gxf5 {[%clk 0:00:23]} 50. Ke2 {[%clk 0:00:17]}  Kf6 {[%clk 0:00:23]} 51. f4 {[%clk 0:00:17]}  Bc3 {[%clk 0:00:22]} 52. Kf3 {[%clk 0:00:17]}  Be1 {[%clk 0:00:22]} 53. Bc6 {[%clk 0:00:17]}  Ke6 {[%clk 0:00:20]} 54. Bb5 {[%clk 0:00:17]}  Kf6 {[%clk 0:00:21]} 55. h5 {[%clk 0:00:17]}  Ke6 {[%clk 0:00:21]} 56. Bc6 {[%clk 0:00:16]}  Kf6 {[%clk 0:00:21]} 57. e4 {[%clk 0:00:16]}  fxe4+ {[%clk 0:00:21]} 58. Bxe4 {[%clk 0:00:17]}  Ke6 {[%clk 0:00:20]} 59. g4 {[%clk 0:00:18]}  f6 {[%clk 0:00:19]} 60. Bd5+ {[%clk 0:00:17]}  Ke7 {[%clk 0:00:19]} 61. Ke4 {[%clk 0:00:18]}  Bd2 {[%clk 0:00:20]} 62. Kf5 {[%clk 0:00:19]}  Bc1 {[%clk 0:00:19]} 63. Be4 {[%clk 0:00:18]}  Bd2 {[%clk 0:00:19]} 64. Bd5 {[%clk 0:00:18]}  Bc1 {[%clk 0:00:20]} 65. Ke4 {[%clk 0:00:19]}  Bd2 {[%clk 0:00:20]} 66. Kf3 {[%clk 0:00:20]}  Bc1 {[%clk 0:00:20]} 67. Be4 {[%clk 0:00:20]}  Bd2 {[%clk 0:00:20]} 68. Bg6 {[%clk 0:00:20]}  Bc1 {[%clk 0:00:20]} 69. Bf5 {[%clk 0:00:21]}  Bd2 {[%clk 0:00:20]} 70. Ke4 {[%clk 0:00:22]}  Bc1 {[%clk 0:00:20]} 71. c5 {[%clk 0:00:23]}  dxc5 {[%clk 0:00:20]} 72. g5 {[%clk 0:00:23]}  fxg5 {[%clk 0:00:19]} 73. fxg5 {[%clk 0:00:24]}  Bxg5 {[%clk 0:00:19]} 74. Kd5 {[%clk 0:00:24]}  Kf6 {[%clk 0:00:20]} 75. Bg6 {[%clk 0:00:23]}  Be3 {[%clk 0:00:20]} 76. Kc4 {[%clk 0:00:24]}  Bg5 {[%clk 0:00:19]} 77. Kxc5 {[%clk 0:00:24]}  Ke5 {[%clk 0:00:19]} 1/2-1/2


[Site "https://www.chess.com"]

[Event "Titled Tuesday Blitz July 20 2021"]
[White "Zia, Tahsin Tajwar"]
[Black "Belyakov, Bogdan"]
[WhiteFideId "10211888"]
[BlackFideId "24104795"]
[WhiteElo "1800"]
[BlackElo "2407"]
[Result "0-1"]
[Round "01"]
[TimeControl "180+1"]
[Date "2021.07.21"]
[WhiteClock "0:00:06"]
[BlackClock "0:01:13"]

1. d4 {[%clk 0:03:00]}  Nf6 {[%clk 0:02:58]} 2. Bf4 {[%clk 0:03:00]}  g6 {[%clk 0:02:57]} 3. Nc3 {[%clk 0:02:57]}  d5 {[%clk 0:02:55]} 4. e3 {[%clk 0:02:57]}  Bg7 {[%clk 0:02:55]} 5. h4 {[%clk 0:02:57]}  h6 {[%clk 0:02:48]} 6. Nf3 {[%clk 0:02:57]}  c6 {[%clk 0:02:43]} 7. Be2 {[%clk 0:02:54]}  O-O {[%clk 0:02:38]} 8. h5 {[%clk 0:02:46]}  g5 {[%clk 0:02:38]} 9. Bxg5 {[%clk 0:02:46]}  hxg5 {[%clk 0:02:38]} 10. h6 {[%clk 0:02:47]}  Bxh6 {[%clk 0:02:21]} 11. Rxh6 {[%clk 0:02:46]}  Kg7 {[%clk 0:02:22]} 12. Rh1 {[%clk 0:02:40]}  Rh8 {[%clk 0:02:20]} 13. Rxh8 {[%clk 0:02:29]}  Qxh8 {[%clk 0:02:21]} 14. Nxg5 {[%clk 0:02:30]}  Qh1+ {[%clk 0:02:20]} 15. Kd2 {[%clk 0:02:29]}  Qxg2 {[%clk 0:02:15]} 16. Qg1 {[%clk 0:02:25]}  Qxg1 {[%clk 0:02:14]} 17. Rxg1 {[%clk 0:02:26]}  Kf8 {[%clk 0:02:12]} 18. f4 {[%clk 0:02:19]}  Bf5 {[%clk 0:02:11]} 19. Bd3 {[%clk 0:02:19]}  Bxd3 {[%clk 0:02:08]} 20. cxd3 {[%clk 0:02:20]}  Nbd7 {[%clk 0:02:07]} 21. e4 {[%clk 0:02:19]}  dxe4 {[%clk 0:01:58]} 22. dxe4 {[%clk 0:02:19]}  e6 {[%clk 0:01:58]} 23. Ke3 {[%clk 0:02:04]}  Ke7 {[%clk 0:01:58]} 24. Rh1 {[%clk 0:01:49]}  Rg8 {[%clk 0:01:47]} 25. e5 {[%clk 0:01:43]}  Ne8 {[%clk 0:01:47]} 26. Rh7 {[%clk 0:01:42]}  Rg7 {[%clk 0:01:46]} 27. Rh8 {[%clk 0:01:37]}  Nf8 {[%clk 0:01:45]} 28. Nce4 {[%clk 0:01:37]}  Ng6 {[%clk 0:01:45]} 29. Rh1 {[%clk 0:01:32]}  Rg8 {[%clk 0:01:44]} 30. Rh7 {[%clk 0:01:22]}  Rg7 {[%clk 0:01:44]} 31. Rh1 {[%clk 0:01:23]}  Rg8 {[%clk 0:01:43]} 32. b4 {[%clk 0:01:23]}  Rh8 {[%clk 0:01:43]} 33. Rxh8 {[%clk 0:01:21]}  Nxh8 {[%clk 0:01:42]} 34. Nc5 {[%clk 0:01:17]}  b6 {[%clk 0:01:41]} 35. Nb3 {[%clk 0:01:15]}  Nc7 {[%clk 0:01:37]} 36. a3 {[%clk 0:01:10]}  Ng6 {[%clk 0:01:36]} 37. Nh3 {[%clk 0:01:06]}  Nh4 {[%clk 0:01:34]} 38. Ke4 {[%clk 0:00:58]}  Nb5 {[%clk 0:01:33]} 39. a4 {[%clk 0:00:54]}  Nc3+ {[%clk 0:01:33]} 40. Kd3 {[%clk 0:00:55]}  Nxa4 {[%clk 0:01:34]} 41. Kc2 {[%clk 0:00:54]}  Nf5 {[%clk 0:01:32]} 42. Ng5 {[%clk 0:00:49]}  b5 {[%clk 0:01:30]} 43. Ne4 {[%clk 0:00:42]}  Nb6 {[%clk 0:01:27]} 44. Na5 {[%clk 0:00:37]}  Kd7 {[%clk 0:01:22]} 45. Nc5+ {[%clk 0:00:24]}  Kc7 {[%clk 0:01:21]} 46. Na6+ {[%clk 0:00:23]}  Kc8 {[%clk 0:01:19]} 47. Nxc6 {[%clk 0:00:23]}  Kb7 {[%clk 0:01:19]} 48. Nd8+ {[%clk 0:00:13]}  Kxa6 {[%clk 0:01:18]} 49. Nxf7 {[%clk 0:00:14]}  Nxd4+ {[%clk 0:01:15]} 50. Kd3 {[%clk 0:00:13]}  Nf5 {[%clk 0:01:15]} 51. Nd8 {[%clk 0:00:11]}  Ng7 {[%clk 0:01:14]} 52. Kd4 {[%clk 0:00:09]}  Na4 {[%clk 0:01:14]} 53. f5 {[%clk 0:00:07]}  Nxf5+ {[%clk 0:01:13]} 54. Ke4 {[%clk 0:00:07]}  Ng7 {[%clk 0:01:13]} 55. Nc6 {[%clk 0:00:06]}  Kb6 {[%clk 0:01:13]} 0-1


[Site "https://www.chess.com"]